bitfinex-derivatives/quotes_SOLF0:USTF0_20241008
["timestamp","ask_amount","ask_price","bid_price","bid_amount"]
[1728410557177,0.12502,143.57,143.55,10.71]
[1728410557376,0.12502,143.57,143.54,5.26]
[1728410557679,0.12502,143.57,143.56,10.71]
[1728410559876,0.12502,143.57,143.56,14.1944]
[1728410560378,0.12502,143.57,143.56,10.71]
[1728410561072,3.4832,143.62,143.56,10.71]
[1728410561270,0.12502,143.63,143.6,10.71]
[1728410561580,3.4831,143.62,143.6,10.71]
[1728410561969,0.12502,143.63,143.6,10.71]
[1728410562170,3.4831,143.62,143.59,10.71]
[1728410562769,0.12502,143.63,143.6,10.71]
[1728410564278,3.4831,143.62,143.6,10.71]
[1728410564871,3.4831,143.62,143.58,8.7838]
[1728410565078,3.4831,143.62,143.59,10.71]
[1728410565274,0.12502,143.63,143.59,10.71]
[1728410565775,0.12502,143.63,143.6,10.71]
[1728410565977,3.60782,143.63,143.6,10.71]
[1728410566478,3.483,143.62,143.59,10.71]
[1728410566678,0.12502,143.63,143.6,10.71]
[1728410566880,3.60782,143.63,143.6,10.71]
[1728410567181,0.12502,143.63,143.6,10.71]
[1728410567775,3.60772,143.63,143.6,10.71]
[1728410567976,0.12502,143.63,143.62,10.71]
[1728410568283,0.12502,143.63,143.62,14.1929]
[1728410569479,0.12502,143.63,143.62,19.4929]
[1728410571378,0.12502,143.63,143.62,22.8936192]
[1728410574882,0.12502,143.63,143.62,19.4929]
[1728410575280,0.12502,143.63,143.62,5.3]
[1728410575482,0.12502,143.63,143.62,16.01]
[1728410575681,0.12502,143.63,143.62,10.71]
[1728410575883,0.12502,143.63,143.61,16.01]
[1728410576091,0.12502,143.63,143.61,10.71]
[1728410576389,0.12502,143.63,143.61,14.193]
[1728410578187,0.12502,143.63,143.6,5.3]
[1728410578591,0.12502,143.63,143.59,16.01]
[1728410578888,0.12502,143.63,143.59,19.4936]
[1728410579089,0.12502,143.63,143.59,16.01]
[1728410579990,3.60782,143.63,143.6,3.4834]
[1728410580194,0.12502,143.63,143.59,16.01]
[1728410580688,3.4831,143.62,143.59,10.71]
[1728410581493,0.12502,143.63,143.59,10.71]
[1728410581790,0.12502,143.63,143.58,16.01]
[1728410582189,0.12502,143.63,143.57,92.24013324]
[1728410582488,1.47642,143.63,143.56,16.01]
[1728410582695,10.71,143.61,143.56,16.01]
[1728410583195,10.71,143.61,143.57,10.71]
[1728410583493,3.4836,143.6,143.57,10.71]
[1728410584194,3.4836,143.6,143.57,14.1941]
[1728410584495,10.71,143.61,143.56,16.01]
[1728410584696,10.71,143.6,143.56,16.01]
[1728410585189,3.4841,143.58,143.56,16.01]
[1728410585392,10.71,143.58,143.54,10.71]
[1728410585690,10.71,143.58,143.54,3.4848]
[1728410585890,10.71,143.58,143.55,10.71]
[1728410586387,14.194,143.58,143.55,10.71]
[1728410586695,14.194,143.58,143.55,14.1946]
[1728410587095,14.194,143.58,143.55,10.71]
[1728410587394,14.194,143.58,143.54,3.4848]
[1728410587595,14.194,143.58,143.55,10.71]
[1728410587994,10.71,143.58,143.55,10.71]
[1728410588184,3.4841,143.57,143.55,10.71]
[1728410588387,10.71,143.58,143.55,10.71]
[1728410588590,10.71,143.57,143.52,14.1953]
[1728410588900,2.6313,143.62,143.51,10.83502]
[1728410588901,10.71,143.56,143.51,10.83502]
[1728410589098,12.1276,143.56,143.51,10.83502]
[1728410589290,3.4851,143.54,143.51,10.83502]
[1728410589490,1.4176,143.56,143.52,10.71]
[1728410590089,4.9021,143.56,143.54,10.71]
[1728410590291,1.4176,143.56,143.54,10.71]
[1728410592097,5.46,143.58,143.55,10.71]
[1728410592295,8.944,143.58,143.55,10.71]
[1728410592499,1.3697,143.61,143.56,10.71]
[1728410593202,3.4836,143.6,143.56,14.1943]
[1728410593591,1.3697,143.61,143.57,10.71]
[1728410594900,3.4835,143.6,143.55,3.4845]
[1728410595106,10.71,143.59,143.54,5.46]
[1728410595402,10.71,143.59,143.54,16.17]
[1728410595591,3.4843,143.57,143.54,16.17]
[1728410595793,10.71,143.59,143.54,16.17]
[1728410596096,10.71,143.6,143.55,14.1945]
[1728410596292,10.71,143.6,143.54,8.87665592]
[1728410596293,12.0797,143.61,143.57,10.71]
[1728410596697,3.4832,143.61,143.6,10.71]
[1728410596901,0.12502,143.63,143.6,10.71]
[1728410597099,0.12502,143.63,143.61,10.71]
[1728410598200,0.12502,143.63,143.61,14.1931]
[1728410598397,0.12502,143.63,143.6,10.71]
[1728410598595,0.12502,143.63,143.58,5.46]
[1728410598797,3.4834,143.6,143.58,5.46]
[1728410599200,3.4832,143.61,143.58,5.46]
[1728410599602,10.83502,143.63,143.58,5.46]
[1728410599799,3.4834,143.61,143.58,10.71]
[1728410600001,16.29502,143.63,143.58,10.71]
[1728410600201,5.58502,143.63,143.58,10.71]
[1728410600405,3.4833,143.61,143.58,10.71]
[1728410601303,3.4834,143.6,143.58,10.71]
[1728410604307,3.4837,143.59,143.58,10.71]
[1728410604807,3.4837,143.59,143.56,10.71]
[1728410605109,10.71,143.58,143.53,10.71]
[1728410605609,14.1941,143.58,143.54,3.4849]
[1728410605804,1.3665,143.61,143.57,10.71]
[1728410605996,1.3665,143.61,143.59,10.71]
[1728410606404,1.3665,143.61,143.58,10.71]
[1728410606603,1.3665,143.61,143.59,10.71]
[1728410608201,1.3665,143.61,143.55,3.54185501]
[1728410608509,1.3665,143.61,143.58,10.71]
[1728410608908,1.3665,143.61,143.58,14.1938]
[1728410610505,4.8497,143.61,143.58,14.1938]
[1728410610901,4.8497,143.61,143.58,10.71]
[1728410612215,1.3665,143.61,143.57,3.484]
[1728410612510,10.71,143.59,143.54,10.71]
[1728410612814,10.71,143.56,143.51,16.29502]
[1728410613109,5.46,143.57,143.53,10.71]
[1728410613506,3.4844,143.56,143.53,10.71]
[1728410613700,5.46,143.57,143.53,10.71]
[1728410614104,3.4844,143.56,143.53,10.71]
[1728410614302,5.46,143.57,143.53,10.71]
[1728410614501,5.46,143.57,143.51,22.32502]
[1728410614702,3.4844,143.56,143.52,3.4852]
[1728410615211,3.4844,143.56,143.53,3.4851]
[1728410615411,8.9443,143.57,143.53,3.4851]
[1728410616501,3.4844,143.56,143.52,3.4852]
[1728410617211,5.46,143.57,143.51,22.32502]
[1728410617412,8.9442,143.57,143.53,3.4851]
[1728410618419,3.4844,143.56,143.52,3.4852]
[1728410619712,3.4844,143.56,143.51,22.32502]
[1728410619915,3.4844,143.56,143.52,3.4852]
[1728410622815,3.4845,143.56,143.52,3.4852]
[1728410624223,3.4847,143.55,143.52,3.4852]
[1728410625429,5.46,143.57,143.51,22.32502]
[1728410626028,3.4846,143.55,143.52,3.4852]
[1728410627128,3.4845,143.56,143.53,3.4851]
[1728410627529,5.46,143.57,143.53,3.4851]
[1728410628031,7.2065,143.61,143.52,16.74]
[1728410628329,7.2065,143.61,143.55,3.4845]
[1728410628530,7.2065,143.61,143.52,16.74]
[1728410628725,3.484,143.58,143.52,16.74]
[1728410629231,1.3665,143.61,143.51,5.58502]
[1728410629532,1.3665,143.61,143.54,16.74]
[1728410629725,1.3665,143.61,143.55,5.84]
[1728410629929,4.8498,143.61,143.57,3.4839]
[1728410630135,2.6516,143.62,143.56,16.74]
[1728410630332,0.12502,143.63,143.58,16.74]
[1728410630936,0.12502,143.63,143.61,3.4831]
[1728410631130,0.12502,143.63,143.58,16.74]
[1728410631631,0.12502,143.63,143.6,3.4832]
[1728410632731,0.12502,143.63,143.62,20.2229]
[1728410633126,1.3761,143.68,143.62,16.74]
[1728410633322,1.3761,143.68,143.64,20.2223]
[1728410633525,0.12502,143.69,143.64,20.2223]
[1728410633721,0.12502,143.69,143.64,16.74]
[1728410633923,0.12502,143.69,143.68,16.74]
[1728410634122,0.12502,143.69,143.66,108.91930143]
[1728410634334,0.12502,143.69,143.66,16.74]
[1728410634523,0.12502,143.69,143.65,16.74]
[1728410634730,0.12502,143.69,143.61,6.76]
[1728410634930,3.4819,143.67,143.62,3.4828]
[1728410635131,16.86502,143.69,143.61,6.76]
[1728410635439,3.60652,143.69,143.63,3.4825]
[1728410635934,3.60652,143.69,143.64,3.4824]
[1728410636634,0.12502,143.69,143.64,3.4822]
[1728410637031,0.12502,143.69,143.62,20.21778989]
[1728410637227,0.12502,143.69,143.64,16.74]
[1728410637435,0.12502,143.69,143.67,3.4816]
[1728410638240,0.12502,143.69,143.66,16.74]
[1728410638427,0.12502,143.69,143.68,20.2215]
[1728410639637,0.12502,143.75,143.68,16.74]
[1728410639845,0.12502,143.75,143.7,16.74]
[1728410640041,3.60502,143.75,143.7,16.74]
[1728410640337,0.12502,143.75,143.7,16.74]
[1728410640538,0.12502,143.75,143.69,16.74]
[1728410641336,0.12502,143.75,143.71,3.4806]
[1728410642836,0.12502,143.75,143.69,23.5]
[1728410643026,3.4801,143.74,143.69,23.5]
[1728410643436,0.12502,143.75,143.72,16.74]
[1728410643633,2.7758,143.84,143.75,16.74]
[1728410643834,2.7758,143.84,143.73,6.76]
[1728410644040,3.4788,143.79,143.74,16.74]
[1728410644240,2.7758,143.84,143.74,16.74]
[1728410644436,16.74,143.83,143.69,0.12502]
[1728410644637,3.4787,143.8,143.74,3.4798]
[1728410644940,21.62260766,143.83,143.73,16.74]
[1728410645447,3.4792,143.78,143.73,16.74]
[1728410646046,3.4792,143.78,143.73,20.2202]
[1728410646341,3.4794,143.77,143.73,20.2202]
[1728410646738,6.76,143.82,143.73,20.2202]
[1728410646936,3.4795,143.76,143.73,20.2202]
[1728410647242,6.76,143.82,143.73,20.2202]
[1728410647540,3.4799,143.75,143.73,6.76]
[1728410648237,16.74,143.8,143.71,20.2205]
[1728410648441,16.74,143.79,143.7,6.76]
[1728410648639,16.74,143.77,143.7,6.76]
[1728410648942,3.4807,143.72,143.7,6.76]
[1728410649334,1.3622,143.76,143.7,6.76]
[1728410649335,3.4804,143.73,143.7,6.76]
[1728410649643,16.74,143.75,143.69,0.12502]
[1728410650046,6.76,143.74,143.69,0.12502]
[1728410652040,3.4807,143.72,143.69,0.12502]
[1728410653030,3.4803,143.73,143.69,3.60622]
[1728410653236,3.4803,143.73,143.69,0.12502]
[1728410653548,3.481,143.7,143.69,0.12502]
[1728410653938,16.74,143.73,143.69,0.12502]
[1728410654338,3.4809,143.71,143.69,0.12502]
[1728410654844,16.74,143.73,143.69,0.12502]
[1728410655141,3.4806,143.72,143.69,0.12502]
[1728410655343,16.74,143.73,143.69,0.12502]
[1728410656041,3.481,143.7,143.69,0.12502]
[1728410657840,6.76,143.74,143.69,0.12502]
[1728410658239,3.4803,143.73,143.69,0.12502]
[1728410658948,3.4807,143.72,143.69,0.12502]
[1728410659747,6.76,143.74,143.69,0.12502]
[1728410660042,3.4807,143.72,143.69,0.12502]
[1728410660248,6.76,143.74,143.69,0.12502]
[1728410660742,6.76,143.74,143.7,3.481]
[1728410661055,6.76,143.74,143.69,0.12502]
[1728410661241,3.4806,143.72,143.69,0.12502]
[1728410663939,3.48,143.74,143.69,0.12502]
[1728410664141,8.1822,143.76,143.69,0.12502]
[1728410664845,3.4802,143.74,143.7,3.481]
[1728410665150,1.3622,143.76,143.7,16.74]
[1728410665347,3.48,143.75,143.71,3.4806]
[1728410665943,3.48,143.75,143.7,16.74]
[1728410666247,3.48,143.75,143.7,20.2209]
[1728410666444,1.3622,143.76,143.7,20.2209]
[1728410666651,3.4802,143.74,143.7,20.2209]
[1728410668750,3.48,143.74,143.69,0.12502]
[1728410668958,1.4401,143.73,143.69,0.12502]
[1728410670158,3.481,143.7,143.69,0.12502]
[1728410671154,3.4806,143.72,143.69,0.12502]
[1728410672962,4.9205,143.73,143.69,3.60612]
[1728410673164,1.4401,143.73,143.69,0.12502]
[1728410673963,3.4806,143.72,143.69,0.12502]
[1728410675363,1.4401,143.73,143.69,0.12502]
[1728410675662,3.4808,143.71,143.69,0.12502]
[1728410675959,1.4401,143.73,143.69,0.12502]
[1728410676363,3.4809,143.71,143.69,0.12502]
[1728410676749,1.4401,143.73,143.69,0.12502]
[1728410676955,3.481,143.7,143.69,0.12502]
[1728410681072,1.4401,143.73,143.63,0.12502]
[1728410681368,16.74,143.68,143.63,0.12502]
[1728410681567,1.4297,143.69,143.63,0.12502]
[1728410681568,3.4824,143.64,143.63,0.12502]
[1728410681957,18.0488,143.67,143.63,0.12502]
[1728410682857,3.4824,143.64,143.63,0.12502]
[1728410684466,3.4822,143.65,143.63,0.12502]
[1728410685367,18.0488,143.67,143.63,0.12502]
[1728410685564,3.4824,143.64,143.63,0.12502]
[1728410687256,1.3768,143.66,143.6,92.21744741]
[1728410687462,3.4828,143.63,143.59,3.4836]
[1728410688370,3.4826,143.64,143.6,3.4833]
[1728410688563,3.4826,143.64,143.58,20.1673099]
[1728410688767,1.3768,143.66,143.58,20.1673099]
[1728410689071,3.4824,143.65,143.61,3.483]
[1728410689462,3.4826,143.64,143.6,3.4834]
[1728410690168,3.4829,143.63,143.59,3.4836]
[1728410690568,1.55472,143.69,143.61,16.74]
[1728410690766,1.55472,143.69,143.62,16.74]
[1728410691164,1.55472,143.69,143.66,3.4818]
[1728410691766,1.55472,143.69,143.67,3.4817]
[1728410693565,1.55472,143.69,143.64,23.18]
[1728410693766,0.12502,143.69,143.66,3.4818]
[1728410694468,0.12502,143.69,143.68,3.4815]
[1728410696769,0.12502,143.69,143.67,3.4817]
[1728410697671,0.12502,143.69,143.64,6.44]
[1728410697869,0.12502,143.69,143.61,3.41790474]
[1728410698075,0.12502,143.69,143.6,11.19517249]
[1728410698076,1.52232,143.69,143.6,11.19517249]
[1728410698279,3.4819,143.67,143.63,3.4826]
[1728410698476,1.52232,143.69,143.6,11.19517249]
[1728410698776,16.74,143.68,143.6,1.3474]
[1728410699074,1.426,143.67,143.59,118.9036785]
[1728410699275,2.7519,143.67,143.59,118.9036785]
[1728410699476,2.7519,143.67,143.59,115.40224188]
[1728410700273,3.4825,143.64,143.6,3.4833]
[1728410700779,3.4824,143.65,143.61,3.4831]
[1728410700978,2.7519,143.67,143.61,3.4831]
[1728410701167,2.7519,143.67,143.59,115.40224188]
[1728410701478,16.74,143.66,143.59,92.22224188]
[1728410701879,23.18,143.66,143.59,92.22224188]
[1728410702271,16.74,143.64,143.56,6.44]
[1728410702765,16.74,143.64,143.58,3.4838]
[1728410703176,3.4831,143.62,143.56,6.44]
[1728410703373,3.4831,143.62,143.57,3.60902]
[1728410703570,3.4831,143.62,143.57,0.12502]
[1728410703776,3.4831,143.62,143.58,3.4839]
[1728410705077,3.483,143.62,143.57,3.60902]
[1728410705581,3.4834,143.61,143.57,0.12502]
[1728410705788,16.74,143.64,143.57,0.12502]
[1728410706168,3.4834,143.6,143.57,0.12502]
[1728410707982,4.8408,143.61,143.58,3.4839]
[1728410708478,1.3576,143.61,143.59,3.4836]
[1728410708686,1.3225,143.63,143.59,3.4836]
[1728410708873,1.3564,143.66,143.58,20.28752514]
[1728410709078,1.3564,143.66,143.62,3.4828]
[1728410709278,1.3564,143.66,143.58,20.28752514]
[1728410709479,3.4824,143.65,143.58,21.62902514]
[1728410709679,3.4824,143.65,143.61,3.483]
[1728410709882,1.3564,143.66,143.58,21.62902514]
[1728410710086,4.8384,143.66,143.6,16.74]
[1728410710481,1.3564,143.66,143.6,16.74]
[1728410710677,9.9216,143.68,143.61,23.18]
[1728410710876,6.44,143.68,143.65,3.4821]
[1728410711285,0.12502,143.69,143.63,16.74]
[1728410711485,0.12502,143.69,143.66,3.4818]
[1728410711988,0.12502,143.69,143.65,16.74]
[1728410712491,0.12502,143.69,143.68,3.4815]
[1728410713187,0.12502,143.69,143.66,1.3851]
[1728410713389,0.12502,143.69,143.67,3.4815]
[1728410715292,0.12502,143.69,143.66,1.3851]
[1728410715488,3.60642,143.69,143.66,4.8669]
[1728410715684,0.12502,143.69,143.66,1.3851]
[1728410716182,0.12502,143.69,143.67,3.4815]
[1728410718894,5.56,143.68,143.67,3.4815]
[1728410719293,5.56,143.68,143.66,1.3851]
[1728410719495,5.56,143.68,143.65,23.18]
[1728410720496,5.56,143.68,143.67,3.4817]
[1728410721693,9.0415,143.68,143.65,3.4821]
[1728410721994,7.78,143.68,143.65,3.4821]
[1728410722193,3.4818,143.67,143.64,3.4823]
[1728410722396,3.4818,143.67,143.61,18.117]
[1728410722397,16.74,143.67,143.61,1.377]
[1728410723084,16.74,143.67,143.6,6.36]
[1728410723281,16.74,143.65,143.58,3.54752514]
[1728410723588,3.4827,143.63,143.6,3.4833]
[1728410724194,3.4831,143.62,143.57,24.61562]
[1728410724386,16.74,143.65,143.57,24.61562]
[1728410724888,3.4829,143.63,143.59,3.4834]
[1728410725083,16.74,143.65,143.57,0.12502]
[1728410725289,3.483,143.62,143.58,3.4837]
[1728410725489,18.0615,143.64,143.57,0.12502]
[1728410726103,3.4831,143.62,143.58,3.4837]
[1728410727003,3.4831,143.62,143.57,0.12502]
[1728410727205,3.4831,143.62,143.59,3.4836]
[1728410727801,3.4827,143.63,143.6,3.4834]
[1728410728101,6.38,143.66,143.59,16.74]
[1728410728295,6.38,143.66,143.61,3.4831]
[1728410729304,16.74,143.64,143.57,0.12502]
[1728410730006,3.4831,143.62,143.58,3.4838]
[1728410730502,16.74,143.64,143.57,0.12502]
[1728410731505,3.4833,143.61,143.57,3.60902]
[1728410732006,3.4833,143.61,143.58,3.4839]
[1728410733306,9.0427,143.63,143.59,3.4835]
[1728410733501,5.56,143.63,143.57,16.86502]
[1728410733803,4.302,143.63,143.61,16.74]
[1728410734006,4.0466474,143.68,143.67,3.4817]
[1728410734205,0.12502,143.75,143.67,43.411211]
[1728410734511,0.12502,143.75,143.74,3.48]
[1728410736104,5.68502,143.75,143.74,3.48]
[1728410741816,7.32502,143.75,143.74,3.48]
[1728410742511,7.32502,143.75,143.74,30.22]
[1728410742701,1.54802,143.81,143.74,26.74]
[1728410742906,1.54802,143.81,143.72,26.74]
[1728410742907,0.12502,143.81,143.77,26.74]
[1728410744503,0.12502,143.81,143.8,2.5786]
[1728410746307,1.35502,143.81,143.8,2.5786]
[1728410748214,1.35502,143.81,143.77,33.1]
[1728410748415,4.83332,143.81,143.78,3.4789]
[1728410748808,1.35502,143.81,143.75,36.59013245]
[1728410749108,1.35502,143.81,143.79,3.4787]
[1728410750914,3.4789,143.79,143.76,3.4794]
[1728410751110,1.35502,143.81,143.75,6.36]
[1728410752216,1.35502,143.81,143.73,32.84]
[1728410752414,3.4787,143.8,143.77,3.4792]
[1728410753616,1.35502,143.81,143.72,98.23675679]
[1728410753812,2.819,143.79,143.72,92.13675679]
[1728410754014,1.3635,143.78,143.72,92.13675679]
[1728410755014,4.8427,143.78,143.75,3.4797]
[1728410755616,1.3635,143.78,143.76,3.4794]
[1728410756109,1.3635,143.78,143.72,92.13675679]
[1728410756914,4.8426,143.78,143.72,92.13675679]
[1728410757416,4.8426,143.78,143.76,3.4795]
[1728410758920,3.4793,143.77,143.74,3.4799]
[1728410759125,1.3635,143.78,143.72,108.84675679]
[1728410759515,7.4635,143.78,143.73,3.4801]
[1728410759715,7.4635,143.78,143.71,516.64091]
[1728410760219,3.48,143.75,143.72,3.4804]
[1728410760425,3.48,143.75,143.71,516.64091]
[1728410760724,3.48,143.75,143.72,3.4804]
[1728410761022,3.48,143.75,143.71,516.64091]
[1728410761622,3.48,143.74,143.72,3.4805]
[1728410762225,1.23,143.74,143.72,3.4805]
[1728410763315,1.23,143.74,143.73,3.4803]
[1728410770224,1.23,143.74,143.71,499.93091]
[1728410770614,3.4804,143.73,143.71,499.93091]
[1728410770926,1.23,143.74,143.71,499.93091]
[1728410771423,1.23,143.74,143.72,3.4804]
[1728410772216,1.23,143.74,143.71,499.93091]
[1728410772419,4.7102,143.74,143.71,503.41151]
[1728410772825,4.7102,143.74,143.72,3.4805]
[1728410773025,1.23,143.74,143.71,499.93091]
[1728410773533,1.23,143.74,143.71,516.64091]
[1728410773731,1.23,143.74,143.71,499.93091]
[1728410774827,3.4803,143.73,143.71,499.93091]
[1728410775428,1.23,143.74,143.71,499.93091]
[1728410775632,3.4804,143.73,143.71,499.93091]
[1728410775830,1.23,143.74,143.71,499.93091]
[1728410776232,3.4805,143.72,143.71,499.93091]
[1728410776730,3.4804,143.73,143.71,499.93091]
[1728410777033,1.23,143.74,143.71,499.93091]
[1728410777427,1.23,143.74,143.71,503.41151]
[1728410777726,1.23,143.74,143.71,499.93091]
[1728410777935,3.4803,143.73,143.71,499.93091]
[1728410778229,1.23,143.74,143.71,499.93091]
[1728410778537,3.4805,143.72,143.71,499.93091]
[1728410779127,4.796,143.72,143.71,499.93091]
[1728410780143,21.506,143.72,143.71,337.50268262]
[1728410780329,21.506,143.72,143.71,334.50268262]
[1728410780527,24.96156022,143.72,143.71,334.50268262]
[1728410780727,30.82156022,143.72,143.71,334.50268262]
[1728410783239,102.526,143.72,143.71,163.48388262]
[1728410783434,103.80584116,143.72,143.71,94.64678262]
[1728410783631,107.34398247,143.72,143.71,77.86998262]
[1728410783833,107.34398247,143.72,143.71,66.77128262]
[1728410784033,107.34398247,143.72,143.71,59.01038262]
[1728410784232,107.34398247,143.72,143.71,56.01038262]
[1728410784434,107.34398247,143.72,143.71,45.85128262]
[1728410784634,101.48398247,143.72,143.71,43.85128262]
[1728410784840,107.34398247,143.72,143.71,40.85128262]
[1728410785443,101.48398247,143.72,143.71,40.85128262]
[1728410785744,107.34398247,143.72,143.71,40.85128262]
[1728410786038,3.481,143.7,143.69,0.12502]
[1728410786249,17.98984116,143.7,143.61,3.4831]
[1728410786439,16.71,143.66,143.61,3.4831]
[1728410786633,5.86,143.65,143.61,3.4831]
[1728410788443,3.4824,143.64,143.61,3.4831]
[1728410788838,4.7224,143.64,143.61,3.4831]
[1728410789039,1.24,143.64,143.63,3.60772]
[1728410790040,1.24,143.64,143.63,0.12502]
[1728410792045,4.7224,143.64,143.63,0.12502]
[1728410792243,21.4324,143.64,143.63,0.12502]
[1728410795054,10.5824,143.64,143.63,0.12502]
[1728410797549,4.7224,143.64,143.63,0.12502]
[1728410797739,7.1,143.64,143.63,0.12502]
[1728410799045,10.5824,143.64,143.63,0.12502]
[1728410799649,1.24,143.64,143.63,0.12502]
[1728410799953,5.86,143.66,143.63,0.12502]
[1728410800151,3.4822,143.65,143.63,0.12502]
[1728410801942,5.86,143.66,143.63,0.12502]
[1728410802148,9.3421,143.66,143.63,3.60752]
[1728410802455,5.86,143.66,143.63,0.12502]
[1728410802753,5.86,143.66,143.64,1.4294]
[1728410803854,5.86,143.66,143.64,4.9118]
[1728410805157,5.86,143.68,143.66,3.4818]
[1728410805357,5.86,143.7,143.64,4.2032]
[1728410806257,5.86,143.7,143.68,3.4813]
[1728410807457,5.86,143.73,143.65,16.71]
[1728410807959,9.3403,143.73,143.7,3.4809]
[1728410808858,0.12502,143.75,143.64,10.0632]
[1728410808859,5.66,143.74,143.67,16.71]
[1728410809259,5.66,143.74,143.71,3.4806]
[1728410810354,3.60502,143.75,143.67,16.71]
[1728410810355,0.12502,143.75,143.72,3.4803]
[1728410810556,5.78502,143.75,143.67,16.71]
[1728410810752,16.71,143.74,143.64,10.0632]
[1728410810951,3.4806,143.72,143.69,3.4811]
[1728410811151,22.49502,143.75,143.65,16.71]
[1728410811457,3.4805,143.72,143.69,3.4811]
[1728410814165,3.4805,143.72,143.7,2.7278]
[1728410816179,5.66,143.74,143.7,2.7278]
[1728410816371,3.4807,143.71,143.7,2.7278]
[1728410816772,16.71,143.73,143.64,1.3571]
[1728410817065,5.66,143.74,143.66,4.9263]
[1728410817066,3.4814,143.69,143.66,4.9263]
[1728410817273,3.4814,143.69,143.66,1.4445]
[1728410818080,5.66,143.7,143.66,1.4445]
[1728410819077,3.4816,143.68,143.66,4.9264]
[1728410819983,5.66,143.7,143.66,1.4445]
[1728410820177,3.4817,143.67,143.66,1.4445]
[1728410820483,16.71,143.68,143.63,0.12502]
[1728410820673,3.4824,143.64,143.63,0.12502]
[1728410823575,72.30215403,143.78,143.63,16.83502]
[1728410823774,5.66,143.77,143.68,16.71]
[1728410823976,5.66,143.77,143.69,1.3991]
[1728410824582,5.66,143.77,143.7,16.71]
[1728410825584,5.66,143.77,143.73,3.4801]
[1728410825585,9.1393,143.77,143.73,3.4801]
[1728410826281,72.31037908,143.78,143.74,3.48]
[1728410826469,5.66,143.76,143.74,3.48]
[1728410828980,68.83127908,143.78,143.74,3.48]
[1728410829188,74.49127908,143.78,143.74,3.48]
[1728410829578,5.66,143.78,143.74,3.48]
[1728410830081,78.6789,143.79,143.74,3.48]
[1728410830283,5.66,143.78,143.74,3.48]
[1728410831086,9.1391,143.78,143.74,3.48]
[1728410832082,22.37,143.78,143.71,2.6844]
[1728410832284,22.37,143.78,143.72,3.4803]
[1728410832489,16.71,143.76,143.71,1.3118]
[1728410832891,5.66,143.74,143.71,1.3118]
[1728410833186,9.14,143.74,143.71,4.7924]
[1728410833389,5.66,143.74,143.69,1.3991]
[1728410833690,3.4805,143.73,143.69,4.8802]
[1728410833886,5.66,143.74,143.69,1.3991]
[1728410834298,3.4804,143.73,143.69,1.3991]
[1728410834893,5.66,143.74,143.69,1.3991]
[1728410835190,3.4804,143.73,143.69,1.3991]
[1728410835686,9.1402,143.74,143.69,1.3991]
[1728410835883,5.66,143.74,143.69,1.3991]
[1728410836487,3.4807,143.72,143.69,1.3991]
[1728410836790,3.4807,143.72,143.69,4.8802]